lending/lending_fUSD_20250409
["ID","MTS","AMOUNT","RATE_DAILY","PERIOD"]
[357600261,1744225839090,-1030.0,0.00030184,5]
[357600262,1744225839099,-31260.5684932,0.0003019,3]
[357600263,1744225839108,-1192.59482204,0.0003019,3]
[357600264,1744225839120,-11639.23254626,0.0003019,3]
[357600265,1744225839130,-4092.59532569,0.0003019,2]
[357600266,1744225839138,-500.0,0.00030199,2]
[357600267,1744225839148,-500.0,0.00030199,2]
[357600268,1744225839158,-37189.5376,0.000302,2]
[357600269,1744225839172,-166.66,0.00030221,2]
[357600270,1744225839182,-500.0,0.00030259,2]
[357600271,1744225839191,-500.0,0.00030259,2]
[357600272,1744225839200,-12831.8273683,0.0003026,3]
[357600273,1744225839210,-9971.45318607,0.0003027,3]
[357600274,1744225839221,-605.21999996,0.0003027,3]
[357600279,1744225839428,150.0,0.00027,120]
[357600286,1744225839527,1000.0,0.00044173,30]
[357600325,1744225839895,-3349.60352491,0.0003027,3]
[357600337,1744225840006,-271.392,0.0003027,3]
[357600344,1744225840066,-465.88478005,0.0003027,3]
[357600356,1744225840182,-641.01223463,0.0003027,3]
[357600358,1744225840195,-325.71852098,0.0003027,3]
[357600360,1744225840205,-212.56266921,0.0003027,3]
[357600535,1744225842744,-53.7798483,0.00027005,2]
[357600536,1744225842764,-1066.2201517,0.00027005,2]
[357600537,1744225842774,-1120.0,0.00030005,2]
[357600538,1744225842785,-12619.26469909,0.0003027,3]
[357600539,1744225842796,-338.0,0.0003028,2]
[357600540,1744225842806,-10000.0,0.0003028,2]
[357600541,1744225842816,-6829.7,0.0003028,2]
[357600542,1744225842827,-420.84336137,0.00030286,2]
[357600543,1744225842836,-35.51472399,0.00030286,2]
[357600544,1744225842857,-125.58420296,0.00030286,2]
[357600545,1744225842867,-159.0,0.000303,22]
[357600546,1744225842878,-602.12488222,0.00030314,3]
[357600547,1744225842890,-15028.15936438,0.00030314,3]
[357600548,1744225842900,-151.34,0.00030342,2]
[357600549,1744225842910,-12831.8273683,0.00030351,3]
[357600550,1744225842921,-15630.2842466,0.00030362,3]
[357600551,1744225842931,-12831.8273683,0.00030362,3]
[357600552,1744225842941,-12831.8273683,0.00030369,3]
[357600553,1744225842951,-500.0,0.00030371,2]
[357600554,1744225842962,-500.0,0.00030371,2]
[357600555,1744225842972,-31260.5684932,0.00030372,3]
[357600556,1744225842986,-12831.8273683,0.00030372,3]
[357600557,1744225842996,-151.34,0.00030372,2]
[357600558,1744225843008,-151.0,0.00030379,2]
[357600559,1744225843018,-150.0,0.0003038,2]
[357600560,1744225843029,-150.0,0.0003038,2]
[357600561,1744225843039,-1057.36915759,0.0003038,2]
[357600562,1744225843049,-15995.07894318,0.0003038,2]
[357600563,1744225843059,-500.0,0.00030381,2]
[357600569,1744225843343,-500.0,0.00030381,2]
[357600570,1744225843367,-12831.8273683,0.00030381,3]
[357600571,1744225843376,-46890.8527398,0.00030382,3]
[357600572,1744225843385,-38495.4821048,0.00030382,3]
[357600573,1744225843394,-500.0,0.00030391,2]
[357600574,1744225843403,-500.0,0.00030391,2]
[357600575,1744225843412,-500.0,0.00030391,2]
[357600576,1744225843421,-500.0,0.00030391,2]
[357600577,1744225843430,-500.0,0.00030391,2]
[357600578,1744225843439,-500.0,0.00030391,2]
[357600579,1744225843448,-500.0,0.00030391,2]
[357600580,1744225843457,-500.0,0.00030391,2]
[357600581,1744225843466,-500.0,0.00030391,2]
[357600582,1744225843475,-500.0,0.00030391,2]
[357600583,1744225843485,-91574.32687635,0.00030392,2]
[357600584,1744225843494,-2000.0,0.000304,4]
[357600585,1744225843504,-150.0,0.000304,2]
[357600586,1744225843514,-592.0023,0.000304,2]
[357600587,1744225843523,-2046.535636,0.0003041,4]
[357600588,1744225843532,-500.0,0.000305,5]
[357600589,1744225843542,-324.0,0.0003053,2]
[357600590,1744225843551,-400.62817013,0.00030531,5]
[357600591,1744225843560,-625.60855947,0.00030531,5]
[357600592,1744225843569,-2000.0,0.0003062,5]
[357600593,1744225843579,-151.34,0.00030823,2]
[357600594,1744225843588,-22212.81107612,0.00030833,2]
[357600595,1744225843597,-12831.8273683,0.00030846,3]
[357600596,1744225843606,-15630.2842466,0.00030855,3]
[357600597,1744225843614,-150.0,0.00030865,2]
[357600598,1744225843624,-2044.0,0.00030865,2]
[357600599,1744225843633,-1286.0,0.00030865,2]
[357600600,1744225843642,-574.0,0.00030865,2]
[357600601,1744225843651,-500.0,0.00030893,2]
[357600602,1744225843661,-1000.0,0.000309,11]
[357600603,1744225843670,-500.0,0.00030903,2]
[357600604,1744225843679,-500.0,0.00031,2]
[357600605,1744225843688,-550.0,0.00031,2]
[357600606,1744225843697,-6982.30674882,0.00031011,2]
[357600607,1744225843706,-4578.20559938,0.0003106,3]
[357600613,1744225845582,-855.65800931,0.0003106,3]
[357600614,1744225845758,-4031.71987,0.0003106,3]
[357600615,1744225845839,-817.7,0.0003106,3]
[357600616,1744225845850,-1207.92329472,0.0003106,3]
[357600617,1744225845861,-382.44644005,0.0003106,3]
[357600618,1744225845872,-958.17415484,0.0003106,3]
[357600619,1744225845882,-355.29444072,0.00031063,2]
[357600620,1744225845891,-8402.72571038,0.00031071,3]
[357600626,1744225851726,1000.0,0.00044173,60]
[357600627,1744225864464,1000.0,0.00044173,30]
[357600628,1744225877705,1000.0,0.00044173,30]
[357600629,1744225890024,1000.0,0.00044173,60]
[357600630,1744225902803,1000.0,0.00044173,30]
[357600631,1744225915639,1000.0,0.00044173,30]
[357600634,1744225928133,500.0,0.00044173,30]
[357600635,1744225928631,1000.0,0.00044173,60]
[357600636,1744225928747,518.5,0.00044173,30]
[357600637,1744225929356,537.6845,0.00044173,30]
[357600638,1744225930004,557.5788265,0.00044173,30]
[357600639,1744225931881,578.20924308,0.00044173,30]
[357600640,1744225931992,599.60298507,0.00044173,30]
[357600641,1744225932117,621.78829552,0.00044173,30]
[357600642,1744225932759,644.79446246,0.00044173,30]
[357600643,1744225933361,668.65185757,0.00044173,30]
[357600644,1744225934537,693.3919763,0.00044173,30]
[357600645,1744225935170,719.04747942,0.00044173,30]
[357600646,1744225935808,745.65223616,0.00044173,30]
[357600647,1744225936478,773.2413689,0.00044173,30]
[357600648,1744225937103,801.85129955,0.00044173,30]
[357600649,1744225937715,831.51979763,0.00044173,30]
[357600650,1744225938373,862.28603014,0.00044173,30]
[357600651,1744225938984,894.19061326,0.00044173,30]
[357600652,1744225939627,927.27566595,0.00044173,30]
[357600653,1744225940259,961.58486559,0.00044173,30]
[357600654,1744225940900,961.58486559,0.00044173,30]
[357600655,1744225942289,1000.0,0.00044173,120]
[357600656,1744225942369,50000.0,0.00044173,30]
[357600657,1744225946501,50000.0,0.00044173,31]
[357600658,1744225948446,200.0,0.00044173,30]
[357600659,1744225949069,207.4,0.00044173,30]
[357600660,1744225949707,215.0738,0.00044173,30]
[357600661,1744225950145,50000.0,0.00044173,32]
[357600662,1744225950334,223.0315306,0.00044173,30]
[357600663,1744225950973,231.28369723,0.00044173,30]
[357600664,1744225951970,239.84119403,0.00044173,30]
[357600665,1744225954313,248.71531821,0.00044173,30]
[357600666,1744225954661,257.91778498,0.00044173,30]
[357600667,1744225954757,50000.0,0.00044173,33]
[357600668,1744225954943,267.46074303,0.00044173,30]
[357600669,1744225954985,1000.0,0.00044173,30]
[357600670,1744225955112,277.35679052,0.00044173,30]
[357600671,1744225955633,287.61899177,0.00044173,30]
[357600672,1744225956253,298.26089446,0.00044173,30]
[357600673,1744225956948,309.29654756,0.00044173,30]
[357600674,1744225957551,320.74051982,0.00044173,30]
[357600675,1744225957663,50000.0,0.00044173,34]
[357600676,1744225958143,332.60791905,0.00044173,30]
[357600677,1744225958817,344.91441206,0.00044173,30]
[357600678,1744225959549,357.6762453,0.00044173,30]
[357600679,1744225960094,370.91026638,0.00044173,30]
[357600680,1744225960697,384.63394623,0.00044173,30]
[357600681,1744225961316,384.63394623,0.00044173,30]
[357600682,1744225966079,150.0,0.00044168,30]
[357600683,1744225966382,206.2,0.00044168,30]
[357600684,1744225966681,206.2,0.00044168,30]
[357600685,1744225967036,1000.0,0.00044168,60]
[357600686,1744225972281,50000.0,0.00044168,30]
[357600687,1744225975999,50000.0,0.00044168,31]
[357600688,1744225979808,1000.0,0.00044168,30]
[357600689,1744225979864,50000.0,0.00044168,32]
[357600690,1744225983880,50000.0,0.00044168,33]
[357600691,1744225987509,50000.0,0.00044168,34]
[357600692,1744225992582,1000.0,0.00044168,120]
[357600693,1744226005363,1000.0,0.00044168,60]
[357600694,1744226018538,1000.0,0.00044168,30]
[357600695,1744226030932,1000.0,0.00044168,60]
[357600696,1744226043812,1307.3,0.00044168,30]
[357600697,1744226228344,500.0,0.00044168,30]
[357600698,1744226228970,518.5,0.00044168,30]
[357600699,1744226229597,537.6845,0.00044168,30]
[357600700,1744226230217,537.6845,0.00044168,30]
[357600701,1744226237285,200.0,0.00044168,30]
[357600702,1744226237916,207.4,0.00044168,30]
[357600703,1744226238533,215.0738,0.00044168,30]
[357600704,1744226239146,223.0315306,0.00044168,30]
[357600705,1744226239772,231.28369723,0.00044168,30]
[357600706,1744226240392,239.84119403,0.00044168,30]
[357600707,1744226241016,248.71531821,0.00044168,30]
[357600708,1744226241626,257.91778498,0.00044168,30]
[357600709,1744226242248,267.46074303,0.00044168,30]
[357600710,1744226243042,277.35679052,0.00044168,30]
[357600711,1744226243539,287.61899177,0.00044168,30]
[357600712,1744226244216,298.26089446,0.00044168,30]
[357600713,1744226244831,309.29654756,0.00044168,30]
[357600714,1744226246079,320.74051982,0.00044168,30]
[357600715,1744226246365,332.60791905,0.00044168,30]
[357600716,1744226246857,344.91441206,0.00044168,30]
[357600717,1744226247591,357.6762453,0.00044168,30]
[357600718,1744226248466,370.91026638,0.00044168,30]
[357600719,1744226248862,384.63394623,0.00044168,30]
[357600720,1744226249537,384.63394623,0.00044168,30]
[357600731,1744226710368,166.24683142,0.00044164,120]
[357600732,1744226711229,511.41306486,0.00044164,30]
[357600733,1744226712549,382.21755065,0.00044164,30]
[357600734,1744226713242,949.22448301,0.00044164,91]
[357600735,1744226714365,714.88246013,0.00044164,30]
[357600736,1744226715502,876.77861003,0.00044164,30]
[357600737,1744226716669,1000.0,0.00044164,30]
[357600738,1744226721526,395.07500688,0.00044164,120]
[357600739,1744226722442,557.32480695,0.00044164,120]
[357600740,1744226724558,739.87285424,0.00044164,30]
[357600741,1744226729448,1751.06651343,0.00044164,30]
[357600742,1744226730136,946.96330322,0.00044164,30]
[357600743,1744226730503,500.0,0.00044164,30]
[357600744,1744226740082,332.21356081,0.00044164,120]
[357600745,1744226745455,207.21475664,0.00044164,30]
[357600746,1744226746321,157.52905982,0.00044164,120]
[357600747,1744226749120,365.99859813,0.00044164,120]
[357600748,1744226752734,858.81319652,0.00044164,30]
[357600749,1744226760470,867.02718882,0.00044164,30]
[357600750,1744226763572,1318.44385445,0.00044164,90]
[357600751,1744226765864,172.11457581,0.00044164,120]
[357600752,1744226770309,933.91038548,0.00044164,30]
[357600753,1744226770832,825.87028649,0.00044164,120]
[357600754,1744226772830,726.14603503,0.00044164,60]
[357600755,1744226775945,516.11012548,0.00044164,30]
[357600756,1744226776005,209.02852827,0.00044164,30]
[357600757,1744226776776,964.81291771,0.00044164,30]
[357600758,1744226777210,286.17794012,0.00044164,120]
[357600759,1744226779766,208.84709069,0.00044164,120]
[357600760,1744226783776,511.84730535,0.00044164,120]
[357600761,1744226787032,1015.73399591,0.00044164,30]
[357600762,1744226794464,352.63592078,0.00044164,30]
[357600763,1744226795399,365.22927991,0.00044164,60]
[357600765,1744226806649,705.61218643,0.00044164,120]
[357600766,1744226808131,374.08594938,0.00044164,30]
[357600767,1744226808765,206.937395,0.00044164,30]
[357600768,1744226817563,406.72807994,0.00044164,120]
[357600770,1744226825545,327.01907004,0.00044164,120]
[357600771,1744226825608,197.71108196,0.00044164,120]
[357600773,1744226830429,426.74868322,0.00044164,30]
[357600774,1744226833992,200.0,0.00044164,30]
[357600775,1744226834629,207.4,0.00044164,30]
[357600776,1744226835272,215.0738,0.00044164,30]
[357600777,1744226836224,223.0315306,0.00044164,30]
[357600778,1744226836612,231.28369723,0.00044164,30]
[357600779,1744226837144,239.84119403,0.00044164,30]
[357600780,1744226837795,248.71531821,0.00044164,30]
[357600781,1744226838187,1158.71482108,0.00044164,120]
[357600782,1744226838775,257.91778498,0.00044164,30]
[357600783,1744226839048,267.46074303,0.00044164,30]
[357600784,1744226839669,277.35679052,0.00044164,30]
[357600785,1744226840307,287.61899177,0.00044164,30]
[357600786,1744226840944,298.26089446,0.00044164,30]
[357600787,1744226841597,309.29654756,0.00044164,30]
[357600788,1744226842258,320.74051982,0.00044164,30]
[357600789,1744226842864,332.60791905,0.00044164,30]
[357600790,1744226843467,344.91441206,0.00044164,30]
[357600791,1744226844078,357.6762453,0.00044164,30]
[357600792,1744226844727,370.91026638,0.00044164,30]
[357600793,1744226845398,384.63394623,0.00044164,30]
[357600794,1744226846019,384.63394623,0.00044164,30]
[357600795,1744226854864,1015.5753051,0.00044164,30]
[357600797,1744226865824,187.09407126,0.00044164,120]
[357600798,1744226871911,332.61504763,0.00044164,120]
[357600801,1744226872829,425.2215861,0.00044164,30]
[357600802,1744226873305,1084.78978454,0.00044164,120]
[357600803,1744226873670,507.79272314,0.00044164,120]
[357600804,1744226874568,613.24260533,0.00044164,30]
[357600805,1744226876350,431.19462574,0.00044164,30]
[357600806,1744226877750,2351.92967836,0.00044164,30]
[357600807,1744226881305,407.27134154,0.00044164,30]
[357600808,1744226885384,390.80416693,0.00044164,30]
[357600809,1744226886458,3726.19723933,0.00015,2]
[357600810,1744226886488,3726.19723933,0.00015,2]
[357600811,1744226886523,3726.19723933,0.00015,2]
[357600812,1744226886554,3726.19723933,0.00015,2]
[357600813,1744226886583,3726.19723933,0.00015,2]
[357600814,1744226886611,3726.19723933,0.00015,2]
[357600815,1744226886641,3726.19723933,0.00015,2]
[357600816,1744226886670,3726.19723933,0.00015,2]
[357600817,1744226886698,3726.19723933,0.00015,2]
[357600818,1744226886724,3726.19723933,0.00015,2]
[357600819,1744226889257,954.1938291,0.00044164,120]
[357600820,1744226890300,382.0808584,0.00044164,120]
[357600821,1744226892281,202.27997373,0.00044164,60]
[357600822,1744226895593,887.46871662,0.00044164,30]
[357600823,1744226896289,742.33909381,0.00044164,120]
[357600825,1744226913665,426.64421845,0.00044164,120]
[357600826,1744226913882,380.84009937,0.00044164,120]
[357600827,1744226914877,1001.55529891,0.00044164,120]
[357600828,1744226914920,708.11155587,0.00044164,120]
[357600829,1744226915182,200.42209696,0.00044164,60]
[357600830,1744226916558,943.98625285,0.00044164,38]
[357600831,1744226920004,2005.29608042,0.00044164,30]
[357600832,1744226923196,1468.57687284,0.00044164,30]
[357600833,1744226923906,2099.44896649,0.00044164,120]
[357600834,1744226924605,1188.57335927,0.00044164,120]
[357600835,1744226924732,1101.17629213,0.00044164,120]
[357600836,1744226925322,2203.81413998,0.00044164,30]
[357600839,1744226926415,-1045.81227433,0.000149,2]
[357600842,1744226926447,-3089.89757337,0.00015,2]
[357600846,1744226926502,-6039.08421779,0.00015,2]
[357600848,1744226927388,981.14658349,0.00044164,120]
[357600849,1744226928311,211.22210121,0.00044164,120]
[357600850,1744226929473,262.99221919,0.00044164,30]
[357600851,1744226930007,508.42647731,0.00044164,120]
[357600852,1744226930581,200.6069396,0.00044164,120]
[357600853,1744226930834,606.07822325,0.00044164,120]
[357600854,1744226930889,428.54280114,0.00044164,30]
[357600855,1744226931199,520.521174,0.00028,60]
[357600856,1744226933794,1240.86808228,0.00044164,30]
[357600857,1744226951320,-300.0,0.00014999,2]
[357600859,1744226951353,-5942.5800991,0.00015,2]
[357600860,1744226951409,-5383.80396548,0.00015,2]
[357600862,1744226970136,-3492.6300882,0.0001499,2]
[357600863,1744226970158,-972.0256878,0.00015,2]
[357600864,1744226976496,-1655.36613657,0.00015,2]
[357600865,1744227001716,-6508.21510312,0.0001499,2]
[357600866,1744227001755,-3161.71479224,0.0001499,2]
[357600867,1744227005090,610.0,0.00044164,31]
[357600868,1744227005473,610.0,0.00044164,31]
[357600869,1744227005909,612.0,0.00044164,31]
[357600870,1744227006341,610.0,0.00044164,31]
[357600879,1744227031796,-300.0,0.00014989,2]
[357600880,1744227031806,-246.70831491,0.0001499,2]
[357600881,1744227031906,-27355.25731993,0.0001499,2]
[357600882,1744227031915,-3553.90385665,0.00015,2]
[357600883,1744227031925,-420.0,0.00016405,2]
[357600884,1744227031934,-587.0,0.00017954,2]
[357600885,1744227031944,-400.0,0.000195,7]
[357600886,1744227031954,-900.0,0.000196,7]
[357600887,1744227031963,-1400.0,0.000197,7]
[357600888,1744227031972,-1800.0,0.000198,7]
[357600889,1744227031983,-5585.84539911,0.000199,2]
[357600890,1744227031992,-420.84336137,0.000199,2]
[357600891,1744227032001,-2300.0,0.000199,7]
[357600892,1744227032011,-17819.03341318,0.000199,2]
[357600893,1744227032020,-263.21110796,0.000199,2]
[357600894,1744227032029,-759.42610028,0.000199,2]
[357600895,1744227032038,-25847.11345734,0.000199,2]
[357600896,1744227032048,-181.92149554,0.000199,2]
[357600897,1744227032058,-934.1242,0.000199,2]
[357600898,1744227032071,-1553.50792145,0.000199,2]
[357600899,1744227032080,-1553.50792145,0.000199,2]
[357600900,1744227032089,-504.35525356,0.00019973,2]
[357600901,1744227032099,-378.79,0.0001999,2]
[357600902,1744227032108,-378.79,0.0001999,2]
[357600903,1744227032117,-2245.26,0.0001999,2]
[357600904,1744227032127,-2245.26,0.0001999,2]
[357600906,1744227032136,-258.62964526,0.0001999,2]
[357600908,1744227032145,-258.62964526,0.0001999,2]
[357600909,1744227032163,-18470.38,0.00019999,2]
[357600911,1744227032172,-166.40819735,0.00019999,2]
[357600913,1744227032182,-206.4722619,0.00019999,2]
[357600915,1744227032192,-500.0,0.00019999,2]
[357600917,1744227032201,-500.0,0.00019999,2]
[357600919,1744227032210,-500.0,0.00019999,2]
[357600921,1744227032219,-500.0,0.00019999,2]
[357600924,1744227032228,-500.0,0.00019999,2]
[357600927,1744227032237,-500.0,0.00019999,2]
[357600930,1744227032246,-500.0,0.00019999,2]
[357600933,1744227032255,-500.0,0.00019999,2]
[357600936,1744227032264,-379.88908818,0.00019999,2]
[357600939,1744227032273,-500.0,0.00019999,2]
[357600942,1744227032282,-500.0,0.00019999,2]
[357600945,1744227032291,-500.0,0.00019999,2]
[357600948,1744227032301,-500.0,0.00019999,2]
[357600951,1744227032310,-500.0,0.00019999,2]
[357600954,1744227032319,-500.0,0.00019999,2]
[357600956,1744227032328,-500.0,0.00019999,2]
[357600959,1744227032338,-500.0,0.00019999,2]
[357600962,1744227032348,-500.0,0.00019999,2]
[357600965,1744227032358,-200.0,0.00019999,2]
[357600968,1744227032367,-512875.44035423,0.0002,2]
[357600972,1744227032379,-8837.3766183,0.0002,2]
[357600977,1744227032399,-252.2,0.0002,2]
[357600979,1744227032409,-5665.94681714,0.0002,2]
[357600981,1744227032421,-872.32,0.0002,2]
[357600985,1744227032441,-82230.91095222,0.0002,2]
[357600988,1744227032452,-1776.5946,0.0002,2]
[357601097,1744227037798,-344.81161352,0.0001499,2]
[357601098,1744227037810,-2403.78704119,0.0001499,2]
[357601099,1744227037907,-11373.34699233,0.0001499,2]
[357601100,1744227037964,-30541.842756,0.0001499,2]
[357601101,1744227037976,-156108.75020216,0.0001499,2]
[357601102,1744227037986,-303.03,0.0001999,2]
[357601103,1744227037996,-303.03,0.0001999,2]
[357601104,1744227038006,-303.03,0.0001999,2]
[357601105,1744227038015,-303.03,0.0001999,2]
[357601106,1744227038025,-303.03,0.0001999,2]
[357601107,1744227038035,-303.03,0.0001999,2]
[357601108,1744227038045,-303.03,0.0001999,2]
[357601109,1744227038055,-303.03,0.0001999,2]
[357601110,1744227038064,-303.03,0.0001999,2]
[357601111,1744227038074,-303.03,0.0001999,2]
[357601112,1744227038085,-703424.05807105,0.0002,2]
[357601113,1744227038097,-2771.3390308,0.0002,2]
[357601114,1744227038109,-31368.87052349,0.0002,2]
[357601115,1744227038120,-2201.85814334,0.0002,2]
[357601117,1744227038132,-6206.67954503,0.0002,2]
[357601118,1744227038143,-1675.21509985,0.0002,2]
[357601119,1744227038155,-2159.80967794,0.0002,2]
[357601120,1744227038166,-1852.66210976,0.0002,2]
[357601121,1744227038190,-14379.67001598,0.0002,2]
[357601122,1744227038202,-823.69,0.0002,2]
[357601123,1744227038218,-17981.71839985,0.0002,2]
[357601127,1744227040160,-39982.73642784,0.0002,2]
[357601128,1744227040193,-865.69094875,0.0002,2]
[357601129,1744227040234,-451.2255,0.0002,2]
[357601130,1744227040276,-487.84552266,0.0002,2]
[357601155,1744227042942,-824000.00000002,0.0002,2]
[357601156,1744227042954,-894.78695224,0.0002,2]
[357601157,1744227042970,-1883.59137584,0.0002,2]
[357601158,1744227043000,-109080.74621313,0.0002,2]
[357601159,1744227043013,-987.26933366,0.0002,2]
[357601160,1744227043057,-833353.72380727,0.0002,2]
[357601177,1744227045801,-9933.3338244,0.0002,2]
[357601180,1744227046093,-24814.97110989,0.0002,2]
[357601181,1744227046151,-388.7499999,0.0002,2]
[357601182,1744227046163,-133057.99605958,0.0002,2]
[357601186,1744227049289,264.7367254,0.00044164,120]
[357601189,1744227133469,200.0,0.00044164,30]
[357601190,1744227133782,207.4,0.00044164,30]
[357601191,1744227134418,215.0738,0.00044164,30]
[357601192,1744227135051,223.0315306,0.00044164,30]
[357601193,1744227135630,231.28369723,0.00044164,30]
[357601194,1744227136665,239.84119403,0.00044164,30]
[357601195,1744227136863,248.71531821,0.00044164,30]
[357601196,1744227137466,257.91778498,0.00044164,30]
[357601197,1744227138403,267.46074303,0.00044164,30]
[357601198,1744227138746,277.35679052,0.00044164,30]
[357601199,1744227139076,-378.04350454,0.00019899,2]
[357601200,1744227139101,-974.4447445,0.000199,2]
[357601201,1744227139126,-16201.1899375,0.00019986,2]
[357601202,1744227139155,-4047.51175096,0.0002,2]
[357601203,1744227139331,287.61899177,0.00044164,30]
[357601204,1744227139954,298.26089446,0.00044164,30]
[357601205,1744227141118,309.29654756,0.00044164,30]
[357601206,1744227141748,320.74051982,0.00044164,30]
[357601207,1744227142471,332.60791905,0.00044164,30]
[357601208,1744227143551,344.91441206,0.00044164,30]
[357601209,1744227144674,357.6762453,0.00044164,30]
[357601210,1744227145295,370.91026638,0.00044164,30]
[357601211,1744227146126,384.63394623,0.00044164,30]
[357601212,1744227147004,384.63394623,0.00044164,30]
[357601213,1744227168108,250.0,0.00019,2]
[357601214,1744227392776,-1000.0,0.000195,2]
[357601215,1744227392799,-1220.0,0.000195,2]
[357601216,1744227392822,-2012.7,0.00019571,2]
[357601217,1744227392847,-400.0,0.000198,7]
[357601218,1744227392879,-110333.35186871,0.0001984,2]
[357601219,1744227392903,-11461.2781162,0.0001984,2]
[357601220,1744227392927,-196.34138022,0.00019899,2]
[357601221,1744227392950,-609.6593,0.000199,2]
[357601222,1744227392974,-6280.04190593,0.000199,2]
[357601223,1744227392999,-800.0,0.000199,7]
[357601224,1744227393024,-46724.717684,0.00019986,2]
[357601225,1744227393051,-850.6694114,0.00019986,2]
[357601226,1744227393078,-4970.3796807,0.00019986,2]
[357601227,1744227393105,-48813.4362157,0.00019986,2]
[357601228,1744227393132,-1000.0,0.0001999,2]
[357601229,1744227393158,-1000.0,0.0001999,2]
[357601230,1744227393189,-1000.0,0.0001999,2]
[357601231,1744227393215,-1000.0,0.0001999,2]
[357601232,1744227393242,-1000.0,0.0001999,2]
[357601233,1744227393269,-1054.0,0.0001999,2]
[357601234,1744227393296,-1000.0,0.0001999,2]
[357601235,1744227393323,-1000.0,0.0001999,2]
[357601236,1744227393351,-1000.0,0.0001999,2]
[357601237,1744227393379,-1000.0,0.0001999,2]
[357601238,1744227393407,-500.0,0.00019999,2]
[357601239,1744227393435,-500.0,0.00019999,2]
[357601240,1744227393463,-500.0,0.00019999,2]
[357601241,1744227393491,-500.0,0.00019999,2]
[357601242,1744227393519,-500.0,0.00019999,2]
[357601243,1744227393547,-500.0,0.00019999,2]
[357601244,1744227393574,-500.0,0.00019999,2]
[357601245,1744227393600,-500.0,0.00019999,2]
[357601246,1744227393627,-500.0,0.00019999,2]
[357601247,1744227393654,-250.0,0.00019999,2]
[357601248,1744227393684,-500.0,0.00019999,2]
[357601249,1744227393710,-500.0,0.00019999,2]
[357601250,1744227393738,-500.0,0.00019999,2]
[357601251,1744227393767,-500.0,0.00019999,2]
[357601252,1744227393799,-500.0,0.00019999,2]
[357601253,1744227393825,-500.0,0.00019999,2]
[357601254,1744227393852,-500.0,0.00019999,2]
[357601255,1744227393880,-605.92236173,0.00019999,2]
[357601256,1744227393908,-500.0,0.00019999,2]
[357601257,1744227393933,-500.0,0.00019999,2]
[357601258,1744227393959,-500.0,0.00019999,2]
[357601259,1744227393985,-500.0,0.00019999,2]
[357601260,1744227394010,-500.0,0.00019999,2]
[357601261,1744227394037,-174.734412,0.00019999,2]
[357601262,1744227394063,-500.0,0.00019999,2]
[357601263,1744227394091,-230.0,0.00019999,2]
[357601264,1744227394117,-500.0,0.00019999,2]
[357601265,1744227394144,-1006454.15581213,0.0002,2]
[357601266,1744227394168,-706.92122751,0.0002,2]
[357601267,1744227394193,-1972.10072497,0.0002,2]
[357601268,1744227394217,-1478.66942768,0.0002,2]
[357601269,1744227394241,-4291.43796863,0.0002,2]
[357601270,1744227394266,-33374.53717832,0.0002,2]
[357601271,1744227394290,-7500.0,0.0002,2]
[357601272,1744227394313,-7852.82793431,0.0002,4]
[357601273,1744227394336,-6653.0,0.0002,2]
[357601274,1744227394361,-11032.68426631,0.0002,4]
[357601275,1744227394385,-3950.0,0.0002,2]
[357601276,1744227394410,-1248.15512543,0.0002,2]